Cogmind - Beta 13 @@@ ROGUE MODE // 2024.06.11 @ 21:20:00 Player: saltine Result: Destroyed by DAS Turret with DAS Cannon Performance ------------- Evolutions (1) 500 Regions Visited (5) 1000 Robots Destroyed (30) 150 Value Destroyed (662) 662 Prototype IDs (25) 500 Alien Tech Used (0) 0 Bonus (374) 374 TOTAL SCORE: 3186 Bonus ------- Follower Combat Kills 74 Aligned with FarCom 300 Cogmind --------- Core Integrity 0/400 Matter 300/300 Energy 100/100 System Corruption 2% Temperature Cool (20) Movement Core (1350) Ox26 Location -9/Exiles Parts ------- > --- POWER (1) -------- (None) > --- PROPULSION (2) --- (None) > --- UTILITY (4) ------ Huge Storage Unit Seismic Detector > --- WEAPON (2) ------- (None) > --- INVENTORY (25) --- Light Ion Engine Light Nuclear Core Wheel Wheel Wheel Wheel Compact Wheel Heat Sink Improved Heat Sink Signal Interpreter Light Assault Rifle Light Assault Rifle Heavy Assault Rifle Shotgun Light Cannon Field Lobotomy Kit (5) Ripper Peak State ------------ > --- POWER ------------ Light Ion Engine > --- PROPULSION ------- Light Treads Light Treads > --- UTILITY ---------- Huge Storage Unit Seismic Detector Improved Targeting Computer > --- WEAPON ----------- Particle Gun Rocket Launcher > --- INVENTORY -------- Light Ion Engine Light Nuclear Core Wheel Wheel Wheel Wheel Compact Wheel Heat Sink Improved Heat Sink Signal Interpreter Light Assault Rifle Light Assault Rifle Heavy Assault Rifle Shotgun Light Cannon Field Lobotomy Kit Ripper [Rating: 14] Favorites ----------- Power Light Ion Engine Engine Light Ion Engine Propulsion Light Treads Treads Light Treads Utility Huge Storage Unit Device Seismic Detector Storage Huge Storage Unit Processor Improved Targeting Computer Weapon Particle Gun Energy Gun Particle Gun Ballistic Gun Light Assault Rifle Ballistic Cannon Light Cannon Launcher Rocket Launcher Build | -11 -10 -10 -9 -9 -9 ------- Run | Yrd Mat Min Mat Min Exi Slots Evolved 2 | . . . 2 . . Power . | . . . . . . Propulsion . | . . . . . . Utility 2 | . . . 2 . . Weapon . | . . . . . . Parts Attached 25 | 6 6 1 4 8 . Power 5 | 1 1 . 1 2 . Engine 5 | 1 1 . 1 2 . Core . | . . . . . . Reactor . | . . . . . . Propulsion 7 | 2 2 1 1 1 . Treads 7 | 2 2 1 1 1 . Leg . | . . . . . . Wheel . | . . . . . . Hover . | . . . . . . Flight . | . . . . . . Utility 4 | 1 1 . . 2 . Device 1 | . . . . 1 . Storage 2 | 1 1 . . . . Processor 1 | . . . . 1 . Hackware . | . . . . . . Protection . | . . . . . . Artifact . | . . . . . . Weapon 9 | 2 2 . 2 3 . Energy Gun 5 | 1 2 . 1 1 . Energy Cannon . | . . . . . . Ballistic Gun 1 | 1 . . . . . Ballistic Cannon 1 | . . . . 1 . Launcher 2 | . . . 1 1 . Special Weapon . | . . . . . . Impact Weapon . | . . . . . . Slashing Weapon . | . . . . . . Piercing Weapon . | . . . . . . Special Melee Weapon . | . . . . . . Unidentified Prototypes . | . . . . . . Parts Lost 17 | . 2 4 2 3 6 Power 4 | . 1 1 . 1 1 Propulsion 5 | . . 1 1 1 2 Utility 1 | . . . . . 1 Weapon 7 | . 1 2 1 1 2 Highest Loss Streak 6 | . 1 4 1 2 6 To Critical Strikes . | . . . . . . Average Slot Usage (%) 77 | . 82 73 55 77 87 Engine 11 | . 14 10 8 10 10 Treads 23 | . 27 27 21 21 21 Device 3 | . . . . 4 11 Storage 12 | . 14 14 11 11 11 Processor 5 | . . . . 10 11 Energy Gun 10 | . 12 9 7 9 10 Ballistic Gun 4 | . 14 10 . . . Ballistic Cannon 2 | . . . . 8 . Launcher 3 | . . . 5 2 11 Naked Turns . | . . . . . . Heaviest Build 91 | 11 88 88 91 91 91 Greatest Support 40 | 40 40 40 40 40 40 Greatest Overweight (x) 28 | 2 28 2 2 2 28 Average Overweight (x) 1 | . 2 1 1 2 2 Largest Inventory Capacity 25 | 8 25 25 25 25 25 Average Capacity 24 | 7 24 25 25 25 25 Most Carried 17 | 4 6 6 7 16 17 Average Carried 9 | 2 4 5 5 11 16 Final Capacity 25 | 8 25 25 25 25 25 Final Carried 17 | 4 6 5 7 16 17 Class Distribution -------------------- 67% | Mutant 32% | Scavenger-Mutant Dominant Class ---------------- Mutant | -10/Materials Mutant | -10/Mines Mutant | -9/Materials Mutant | -9/Mines Scavenger-Mutant | -9/Exiles Resources | -11 -10 -10 -9 -9 -9 ----------- Run | Yrd Mat Min Mat Min Exi Matter Collected 673 | 194 141 3 99 204 32 Remotely . | . . . . . . Salvage Created 633 | . 208 37 157 217 14 Parts 46 | . 10 1 10 25 . Haulers Intercepted . | . . . . . . Recyclers Shooed 1 | . 1 . . . . Parts Field Recycled . | . . . . . . Retrieved Matter . | . . . . . . Parts Self-Destructed . | . . . . . . Prevented . | . . . . . . Kills | -11 -10 -10 -9 -9 -9 ------- Run | Yrd Mat Min Mat Min Exi Combat Hostiles Destroyed 25 | . 5 2 4 14 . Melee 2 | . . 2 . . . Guns 9 | . 5 . 1 3 . Cannons 7 | . . . . 7 . AOE 7 | . . . 3 4 . Classes Destroyed 8 | . 3 . 3 1 1 Builder 1 | . . . 1 . . Tunneler 2 | . . . . 2 . Recycler 1 | . 1 . . . . Swarmer 14 | . 3 . . 11 . Grunt 8 | . 2 2 1 3 . Brawler 1 | . . . 1 . . Sentry 2 | . . . 2 . . Zionite 1 | . . . . . 1 Best Kill Streak 4 | . 2 2 2 4 1 Combat Bots Only 4 | . 2 2 2 4 . Max Kills in Single Turn 2 | . 1 1 1 2 1 Gunslinging . | . . . . . . Exploded 2 | . . . 1 2 . Melee 1 | . . 1 . . . Uniques/NPCs Destroyed . | . . . . . . Combat | -11 -10 -10 -9 -9 -9 -------- Run | Yrd Mat Min Mat Min Exi Hostile Shots Fired 218 | . 56 40 22 75 25 Missed 52 | . 15 8 9 17 3 Damage Taken 2162 | . 432 454 244 486 546 Core 592 | . 80 111 26 116 259 Absorbed by Shields . | . . . . . . Core Remaining (%) 61 | 100 . 23 . . . Volleys Fired 79 | . 25 11 12 31 . Largest 2 | . 2 2 1 2 . Hottest 98 | . 60 60 56 98 . Shots Fired 106 | . 43 13 12 37 1 Gun 73 | . 43 13 5 12 . Cannon 22 | . . . . 22 . Launcher 11 | . . . 7 3 1 Special . | . . . . . . Kinetic 58 | . 25 11 . 22 . Thermal 17 | . . . 5 12 . Explosive 11 | . . . 7 3 1 Electromagnetic 20 | . 18 2 . . . Robot Hit Streak 27 | . 24 27 15 5 1 Robot Miss Streak 4 | . 4 2 . 3 . Penetration Max . | . . . . . . Secondary Targets 1 | . 1 . . . . Max Gunslinging Chain 1 | . 1 . . . . Shots Hit Robots 73 | . 31 9 12 20 1 Core Hits 46 | . 10 5 10 19 2 Critical Kills . | . . . . . . Critical Parts Destroyed . | . . . . . . Critical Strikes 3 | . 1 . . 2 . Burn 1 | . . . . 1 . Blast 1 | . . . . 1 . Corrupt 1 | . 1 . . . . Melee Attacks . | . . . . . . Impact . | . . . . . . Slashing . | . . . . . . Piercing . | . . . . . . Sneak Attacks . | . . . . . . Combat Hostiles . | . . . . . . Follow-up Attacks . | . . . . . . Damage Inflicted 1358 | . 326 114 274 574 70 Guns 545 | . 307 77 73 88 . Cannons 250 | . . . . 250 . Explosions 486 | . . . 192 224 70 Melee . | . . . . . . Ramming 77 | . 19 37 9 12 . Kinetic 481 | . 181 50 . 250 . Thermal 161 | . . . 73 88 . Explosive 486 | . . . 192 224 70 Electromagnetic 153 | . 126 27 . . . Impact . | . . . . . . Slashing . | . . . . . . Piercing . | . . . . . . Highest Corruption 2 | . . . 2 2 2 Average Corruption 2 | . . . 2 2 2 Corruption Purged . | . . . . . . Corruption Blocked . | . . . . . . Effects 33 | . . . 3 19 11 Message Errors 5 | . . . 2 2 1 Matter Fused 8 | . . . . 5 3 Heat Flow Errors 2 | . . . . 1 1 Energy Discharges 6 | . . . . 5 1 Parts Fused 1 | . . . . 1 . Data Loss (minor) 5 | . . . 1 2 2 Data Loss (major) 2 | . . . . 1 1 Misfires 2 | . . . . 1 1 Alerts 2 | . . . . 1 1 Overload Shots . | . . . . . . Overflow Damage 4 | . . . 4 . . Projectiles . | . . . . . . Explosions 4 | . . . 4 . . Melee . | . . . . . . Knockbacks 2 | . . . . 2 . Impact . | . . . . . . Kinetic 2 | . . . . 2 . Secondary . | . . . . . . Self-Inflicted Damage 56 | . . . 56 . . Shots 3 | . . . 3 . . Rammed 14 | . 2 11 . 1 . Targets Rammed 18 | . 3 13 1 1 . Kicked . | . . . . . . Crushed 4 | . 1 2 1 . . Highest Temperature 150 | . 130 35 77 122 150 Average Temperature 39 | . 54 12 43 23 83 Received Heat Transfer 607 | . 132 294 99 42 40 Siege Activations . | . . . . . . Robots Corrupted . | . . . . . . Combat Hostiles . | . . . . . . Parts Fried . | . . . . . . Impact Corruptions . | . . . . . . Robots Melted . | . . . . . . Combat Hostiles . | . . . . . . Parts Melted 2 | . . . 1 1 . Heat Transferred 481 | . . . 185 296 . Parts Sabotaged . | . . . . . . Parts Stolen . | . . . . . . Parts Stripped . | . . . . . . Power Chain Reactions . | . . . . . . Alert | -11 -10 -10 -9 -9 -9 ------- Run | Yrd Mat Min Mat Min Exi Peak Influence 267 | . 103 50 173 267 . Initial 67 | . . . 19 67 . Average 83 | . 28 9 130 133 . Maximum Alert Level 1 | . . . . 1 . Low Security (%) 95 | 100 100 100 100 89 . Level 1 4 | . . . . 10 . Level 2 . | . . . . . . Level 3 . | . . . . . . Level 4 . | . . . . . . Level 5 . | . . . . . . High Security . | . . . . . . Max Security . | . . . . . . Squads Dispatched 1 | . . . 1 . . Investigation . | . . . . . . Extermination . | . . . . . . Reinforcement 1 | . . . 1 . . Assault . | . . . . . . Garrison . | . . . . . . Intercept . | . . . . . . Searches Triggered . | . . . . . . Construction Impeded . | . . . . . . Haulers Reinforced . | . . . . . . Active Scanning Responses . | . . . . . . Cargo Convoy Interrupts . | . . . . . . Stealth | -11 -10 -10 -9 -9 -9 --------- Run | Yrd Mat Min Mat Min Exi Distress Signals 1 | . . . 1 . . Communications Jammed . | . . . . . . Distress Signals . | . . . . . . Times Spotted 39 | . 7 2 4 19 7 Peak Tracking Total 12 | . 3 2 2 5 12 Tactical Retreats 5 | . . . . 4 1 Traps | -11 -10 -10 -9 -9 -9 ------- Run | Yrd Mat Min Mat Min Exi Traps Triggered 2 | . 1 . 1 . . Indirectly . | . . . . . . Trap Hack Attempts . | . . . . . . Triggered . | . . . . . . Disarmed . | . . . . . . Reprogrammed . | . . . . . . Reused . | . . . . . . Traps Extracted . | . . . . . . Installed . | . . . . . . Triggered . | . . . . . . Machines | -11 -10 -10 -9 -9 -9 ---------- Run | Yrd Mat Min Mat Min Exi Machines Disabled 8 | . 1 . . 4 3 Max in Single Turn 3 | . 1 . . . 3 Machines Repaired . | . . . . . . Machines Dismantled . | . . . . . . Machines Sabotaged . | . . . . . . Overloaded Fab Kills . | . . . . . . Hacking | -11 -10 -10 -9 -9 -9 --------- Run | Yrd Mat Min Mat Min Exi Machines Accessed 5 | . 4 . . . 1 Terminals 4 | . 4 . . . . Fabricators . | . . . . . . Repair Stations . | . . . . . . Recycling Units . | . . . . . . Scanalyzers . | . . . . . . Garrison Access . | . . . . . . Total Hacks 15 | . 14 . . . 1 Successful 6 | . 5 . . . 1 Failed 9 | . 9 . . . . Catastrophic 2 | . 2 . . . . Database Lockouts . | . . . . . . Manual 2 | . 1 . . . 1 Terminals 14 | . 14 . . . . Fabricators . | . . . . . . Repair Stations . | . . . . . . Recycling Units . | . . . . . . Scanalyzers . | . . . . . . Garrison Access . | . . . . . . Terminal Hacks 6 | . 5 . . . 1 Prototype ID Bank 1 | . 1 . . . . Emergency Access Points 1 | . 1 . . . . Alert Level 1 | . 1 . . . . Locate Traps 1 | . 1 . . . . Dispatch Records 1 | . 1 . . . . Derelict Proto ID Bank 1 | . . . . . 1 Fabricator Hacks . | . . . . . . Repair Station Hacks . | . . . . . . Recycling Unit Hacks . | . . . . . . Scanalyzer . | . . . . . . Garrison Access Hacks . | . . . . . . Unauthorized Hacks . | . . . . . . Terminals . | . . . . . . Fabricators . | . . . . . . Repair Stations . | . . . . . . Recycling Units . | . . . . . . Scanalyzers . | . . . . . . Garrison Access . | . . . . . . Data Cores Recovered . | . . . . . . Used . | . . . . . . Hacking Detections 4 | . 4 . . . . Full Trace Events 1 | . 1 . . . . Feedback Events . | . . . . . . Feedback Blocked . | . . . . . . Robot Schematics Acquired . | . . . . . . Robots Built . | . . . . . . Authchips . | . . . . . . Time . | . . . . . . Total Robot Build Rating . | . . . . . . Part Schematics Acquired . | . . . . . . Parts Built . | . . . . . . Authchips . | . . . . . . Time . | . . . . . . Total Part Build Rating . | . . . . . . Parts Repaired . | . . . . . . Time . | . . . . . . Parts Recycled . | . . . . . . Recycled Matter . | . . . . . . Retrieved Matter . | . . . . . . Retrieved Components . | . . . . . . Parts Scanalyzed . | . . . . . . Part Schematics Acquired . | . . . . . . Parts Damaged . | . . . . . . Bothacking | -11 -10 -10 -9 -9 -9 ------------ Run | Yrd Mat Min Mat Min Exi Used RIF Installer . | . . . . . . Robots Hacked . | . . . . . . Non-combat . | . . . . . . Combat . | . . . . . . Robot Hacks Applied . | . . . . . . Relay Couplers Released . | . . . . . . Fabnet Peak Effective % . | . . . . . . Robots Rewired . | . . . . . . Allies Hacked . | . . . . . . Hacks Repelled . | . . . . . . Allies | -11 -10 -10 -9 -9 -9 -------- Run | Yrd Mat Min Mat Min Exi Total Allies 2 | . . . . 2 . Largest Group 2 | . . . . 2 . Highest-Rated Group 48 | . . . . 48 . Highest-Rated Ally 31 | . . . . 31 . Total Orders . | . . . . . . Ally Attacks 6 | . . . . 6 . Total Damage 352 | . . . . 352 . Kills 5 | . . . . 5 . Allies Corrupted . | . . . . . . Allies Melted . | . . . . . . Intel | -11 -10 -10 -9 -9 -9 ------- Run | Yrd Mat Min Mat Min Exi Robot Analysis Total . | . . . . . . Derelict Logs Recovered 2 | . . 1 . 1 . Drone Launches . | . . . . . . Drone Recoveries . | . . . . . . Exploration | -11 -10 -10 -9 -9 -9 ------------- Run | Yrd Mat Min Mat Min Exi Turns Passed 4064 | 64 882 517 397 1478 726 Spaces Moved 1217 | 35 251 153 118 434 226 Core 9 | 7 1 . . . 1 Treads 1208 | 28 250 153 118 434 225 Legs . | . . . . . . Wheels . | . . . . . . Hover . | . . . . . . Flight . | . . . . . . Fastest Speed 50 | 50 160 240 240 320 320 Average Speed 312 | 148 318 299 307 320 325 Slowest Speed 1450 | 160 1450 320 320 320 1450 Overloaded Moves . | . . . . . . Propulsion Burnouts . | . . . . . . Robots Hopped . | . . . . . . Cave-ins Triggered . | . . . . . . Exploration Rate (%) 39 | 3 47 33 17 77 60 Regions Visited 5 Branch Regions 3 Pre-discovered Areas 1 | . . . . 1 . Known Exits Taken . | . . . . . . Unknown Exits Taken 5 | 1 1 1 1 1 . Scrap Searched 2 | . . . . 2 . Spaces Dug . | . . . . . . Terrain Destroyed 70 | . . . 37 27 6 Melee . | . . . . . . Projectile . | . . . . . . AOE 70 | . . . 37 27 6 Terrain Rammed . | . . . . . . Walls Destroyed . | . . . . . . Machines Disabled . | . . . . . . Actions | -11 -10 -10 -9 -9 -9 --------- Run | Yrd Mat Min Mat Min Exi Total 1358 | 44 289 177 138 483 227 Wait . | . . . . . . Move 1212 | 34 250 152 117 433 226 Hop . | . . . . . . Pick Up 23 | 4 4 . 4 10 1 Fast Attach 17 | 6 4 . 2 5 . Attach 6 | . 2 1 2 1 . Detach . | . . . . . . Swap 2 | . . . . 2 . Drop 1 | . 1 . . . . Fire 79 | . 25 11 12 31 . Melee . | . . . . . . Ram . | . . . . . . Kick . | . . . . . . Crush 18 | . 3 13 1 1 . Escape Stasis . | . . . . . . Rewire . | . . . . . . Trap . | . . . . . . Miscellaneous . | . . . . . . Route ------- -11/Scrapyard -10/Materials (discovered 2 exits: [*Mat] / [*Min]) -10/Mines -9/Materials -9/Mines (discovered 2 exits: [*Mat] / *Exi) -9/Exiles History --------- Turn | Location | Event 24 | -11/Scrapyard | Discovered new exit (range 15) 65 | -11/Scrapyard | Entered Materials 312 | -10/Materials | Build established: Mutant 470 | -10/Materials | Discovered new exit (range 12) 903 | -10/Materials | Discovered new exit (range 9) 947 | -10/Materials | Entered Mines 956 | -10/Mines | Met a Derelict bent on vengeance 1117 | -10/Mines | Learned 4 Materials zone layouts 1346 | -10/Mines | Core integrity fell below 50% 1379 | -10/Mines | Lost 4 parts (1p1n2w) 1435 | -10/Mines | Discovered new exit (range 13) 1464 | -10/Mines | Entered Materials 1464 | -9/Materials | Evolved 2 slots: Utility x2 1813 | -9/Materials | Discovered new exit (range 16) 1861 | -9/Materials | Entered Mines 2282 | -9/Mines | Discovered new exit (range 5) 2418 | -9/Mines | Received a Rocket Launcher from a helpful Derelict 2595 | -9/Mines | A weapon hastily lodged in a ceiling crevice suddenly fell to the ground 3053 | -9/Mines | Build established: Scavenger-Mutant 3323 | -9/Mines | Deemed a non-threat by the Exiles lab entrance 3326 | -9/Mines | Discovered new exit (range 5) 3339 | -9/Mines | Entered Exiles 3416 | -9/Exiles | Met 8R-AWN 3467 | -9/Exiles | Met EX-HEX 3557 | -9/Exiles | Met EX-BIN 3605 | -9/Exiles | Aligned with FarCom system 3608 | -9/Exiles | Given EX-Vault access code 3714 | -9/Exiles | Opened EX-Vault 3736 | -9/Exiles | Found Field Lobotomy Kit 3808 | -9/Exiles | Warned to stay clear of 0b10 Research branches 3894 | -9/Exiles | Met EX-DEC 4051 | -9/Exiles | Attacked by the Exiles 4060 | -9/Exiles | Core integrity fell below 50% 4064 | -9/Exiles | Core integrity fell below 20% 4065 | -9/Exiles | Destroyed by DAS Turret with DAS Cannon Last Messages --------------- Rocket Launcher. 04051_ System corrupted: Rocket Launcher misfires. 04051_ EXILES: Hostile robot within lab perimeter. Defensive protocols time, folks! 04051_ PS-BPA(z) destroyed. 04051_ Machine disabled. 04053_ EX-DEC: "Let's see what this bad boy can do..." 04055_ Lgt. Treads destroyed. 04055_ Lgt. Ion Engine destroyed. 04057_ Lgt. Treads destroyed. 04057_ Particle Gun destroyed. 04058_ The unstable cave ceiling collapses. 04063_ Knocked back. 04064_ Acquired 32 matter. 04064_ Knocked back. 04065_ Rocket Launcher destroyed. 04065_ Imp. Targeting Computer destroyed. [Achievement: Back For More] Map ----- +----------------------------------------------------+ | ???????????? ???????????#" """""""""#?????? | | ?????????????" "?????????##" ###########?????? | | ?????????????# #????????##"" #???????????????? | | ?????##????### ###?######"" #???????????????? | | ?? """#####X# #"###""""""" ##??????????????? | | ? """""" " "" ##???#########?? | | ? "" """ " #####"""""""""# | | ? " " " """ """" | | ? "" " | | ??# " "" | | ???# " | | ????# " | | ?????#" | | ?????#""" """""" | | ????##" ######""" | | ????#"" ""##????#####""" | | ???##""" """##?????????##""" | | ???#""" """##???????????#"""" | | ???#""" ""#????????????#"" | | ???#"" #########??###"""" | | ???#""" ##aaa ###""" | | ???#"" " "" a | | ???##"" a a | | ????#"""" % a a a | | ????## c a " | | ?????#" %@ "" """ | | ?????#"""" # ##""" " " ""#" | | ?????#"" " ## #?####""" """##"""" | | ?????#" """" #### #????###""""#?##### | | ?????#""" """##?## ####???####???????? | | ?????## ""##??#! "!#??????????????? | | ??????#"" """##???#" !#??????????????? | | ??????##""" ##????#" "#??????????????? | | ???????##"""" ##?????#!!""!"#??????????????? | | ????????### #??????########??????????????? | | ??????????##### ##????????????????????????????? | | ??????????????## #?????????????????????????????? | | ???????????????# #?????????????????????????????? | | ???????????????# #?????????????????????????????? | | ???????????????# #?????????????????????????????? | | ???????????????# #?????????????????????????????? | | ???????????????? #?????????????????????????????? | | ???????????????? #?????????????????????????????? | | ???????????????? ??????????????????????????????? | | ?????????????????????????????????????????????????? | | ?????????????????????????????????????????????????? | | ?????????????????????????????????????????????????? | | ?????????????????????????????????????????????????? | | ?????????????????????????????????????????????????? | | ?????????????????????????????????????????????????? | +----------------------------------------------------+ Best States ------------- Heat Dissipation 28 Energy Generation 10 Energy Capacity 250 Matter Stores 300 Matter Capacity 300 Sight Range 16 Terrain Scan Density 10 Evasion (%) 40 Targeting Accuracy 6 Recoil Reduction 2 Item Schematics ----------------- None Robot Schematics ------------------ None Fabricated ------------ Nothing Alien Tech Used ----------------- None Achievements -------------- Back For More Challenges ------------ None Game ------ Seed ThermicZioniteFlail Manual? 0 Play Time 00:21:01 Cumulative 36.6 hours Start 2024.06.11 @ 19:45:37 End 2024.06.11 @ 21:20:00 Sessions 1 Manual Loads 0 Difficulty Rogue Special Mode None Game No. 50 Rogue 50 Adventurer 0 Explorer 0 Win Type - Total 1 Types 1/0/0/0/0/0/0/0/0 Lore% 35 Gallery% 36 Achievement% 30 Wizard Run 0 Options --------- Layout 1 ASCII 0 Keyboard 0 Movement Arrows Keybinds 0 Fullscreen 1 Font 24/Smallcaps Map View 50x35 Zoom Use 0% Tactical HUD 1 Map Filters NONE Filters NONE Steam 1 RUN: e6b13a5c-e341-4854-85ca-da1901cd01e4